Cogmind - Beta 11 @@@ ROGUE MODE // 2022.03.23 @ 20:55:19 Player: Laraso Result: Self-destructed Performance ------------- Evolutions (1) 500 Regions Visited (2) 400 Robots Destroyed (46) 230 Value Destroyed (1031) 1031 Prototype IDs (2) 40 Alien Tech Used (0) 0 Bonus (43) 43 TOTAL SCORE: 2244 Bonus ------- High Alert Combat Kills 43 Cogmind --------- Core Integrity 233/400 Matter 300/300 Energy 100/100 System Corruption 0% Temperature Cool (0) Movement Core (250) Ox4 Location -9/Materials Parts ------- > --- POWER (1) -------- (None) > --- PROPULSION (4) --- Aluminum Leg > --- UTILITY (2) ------ Medium Storage Unit > --- WEAPON (2) ------- Heavy Assault Rifle Scythe > --- INVENTORY (10) --- Deuterium Engine Improved Aluminum Leg Improved Aluminum Leg Improved Heat Sink Terrain Scanner Beam Rifle Peak State ------------ > --- POWER ------------ Deuterium Engine > --- PROPULSION ------- Aluminum Leg Aluminum Leg Aluminum Leg Aluminum Leg > --- UTILITY ---------- Medium Storage Unit Light Armor Plating > --- WEAPON ----------- High-powered Shotgun High-powered Shotgun > --- INVENTORY -------- Deuterium Engine Aluminum Leg Aluminum Leg Improved Aluminum Leg Improved Heat Sink Terrain Scanner High-powered Shotgun High-powered Shotgun Grenade Launcher Scythe [Rating: 17] Favorites ----------- Power Deuterium Engine Engine Deuterium Engine Propulsion Aluminum Leg Leg Aluminum Leg Utility Medium Storage Unit Device ECM Suite Storage Medium Storage Unit Processor Transport Network Coupler Protection Light Armor Plating Weapon Beam Cannon Energy Cannon Beam Cannon Ballistic Gun High-powered Shotgun Launcher Grenade Launcher Slashing Weapon Scythe Build | -11 -10 -9 ------- Run | Scr Mat Mat Slots Evolved 2 | . . 2 Power . | . . . Propulsion 2 | . . 2 Utility . | . . . Weapon . | . . . Parts Attached 33 | 6 13 14 Power 5 | 1 2 2 Engine 5 | 1 2 2 Core . | . . . Reactor . | . . . Propulsion 7 | 2 1 4 Treads . | . . . Leg 7 | 2 1 4 Wheel . | . . . Hover . | . . . Flight . | . . . Utility 7 | 1 5 1 Device 2 | . 2 . Storage 3 | 1 2 . Processor 1 | . 1 . Hackware . | . . . Protection 1 | . . 1 Artifact . | . . . Weapon 14 | 2 5 7 Energy Gun . | . . . Energy Cannon 3 | . 3 . Ballistic Gun 6 | 2 . 4 Ballistic Cannon . | . . . Launcher 4 | . 2 2 Special Weapon . | . . . Impact Weapon . | . . . Slashing Weapon 1 | . . 1 Piercing Weapon . | . . . Special Melee Weapon . | . . . Unidentified Prototypes . | . . . Parts Lost 12 | . 3 9 Power 3 | . 1 2 Propulsion 6 | . 1 5 Utility 2 | . 1 1 Weapon 1 | . . 1 Highest Loss Streak 5 | . 1 5 To Critical Strikes . | . . . Average Slot Usage (%) 95 | . 91 97 Engine 11 | . 13 10 Leg 38 | . 27 43 Storage 12 | . 14 11 Processor 3 | . 4 3 Protection 4 | . . 6 Energy Cannon 11 | . 17 8 Ballistic Gun 6 | . . 10 Launcher 3 | . 9 1 Slashing Weapon 1 | . . 2 Naked Turns . | . . . Heaviest Build 28 | 13 23 28 Greatest Support 40 | 20 20 40 Greatest Overweight (x) 3 | 3 1 1 Average Overweight (x) . | . . . Largest Inventory Capacity 10 | 8 10 10 Average Capacity 9 | 7 9 10 Most Carried 10 | . 10 10 Average Carried 7 | . 5 9 Final Capacity 10 | 8 10 10 Final Carried 10 | . 10 6 Class Distribution -------------------- 100% | Mutant Dominant Class ---------------- Mutant | -10/Materials Mutant | -9/Materials Resources | -11 -10 -9 ----------- Run | Scr Mat Mat Matter Collected 800 | 227 243 330 Remotely . | . . . Salvage Created 1484 | . 571 913 Parts 80 | . 41 39 Haulers Intercepted 4 | . 2 2 Recyclers Shooed 4 | . 1 3 Parts Field Recycled . | . . . Retrieved Matter . | . . . Parts Self-Destructed . | . . . Prevented . | . . . Kills | -11 -10 -9 ------- Run | Scr Mat Mat Combat Hostiles Destroyed 32 | . 13 19 Melee 3 | . . 3 Guns 5 | . . 5 Cannons 16 | . 7 9 AOE 8 | . 6 2 Classes Destroyed 11 | . 7 4 Worker 3 | . 2 1 Builder 1 | . 1 . Tunneler 1 | . 1 . Hauler 4 | . 2 2 Recycler 3 | . 2 1 Watcher 2 | . . 2 Swarmer 10 | . 6 4 Grunt 16 | . 7 9 Brawler 2 | . . 2 Duelist 1 | . . 1 Sentry 3 | . . 3 Best Kill Streak 8 | . 8 6 Combat Bots Only 4 | . 4 4 Max Kills in Single Turn 3 | . 3 1 Gunslinging . | . . . Exploded 2 | . 2 1 Melee 1 | . . 1 Uniques/NPCs Destroyed . | . . . Combat | -11 -10 -9 -------- Run | Scr Mat Mat Damage Taken 1470 | . 396 1074 Core 248 | . 81 167 Absorbed by Shields . | . . . Regen/Repaired (Parts) 53 | . . 53 Core Remaining (%) 83 | 100 67 . Volleys Fired 97 | . 37 60 Largest 2 | . 2 2 Hottest 120 | . 120 120 Shots Fired 157 | . 52 105 Gun 43 | . . 43 Cannon 99 | . 43 56 Launcher 15 | . 9 6 Special . | . . . Kinetic 43 | . . 43 Thermal 99 | . 43 56 Explosive 15 | . 9 6 Electromagnetic . | . . . Robot Hit Streak 11 | . 5 11 Robot Miss Streak 7 | . 7 7 Penetration Max . | . . . Secondary Targets . | . . . Shots Hit Robots 103 | . 24 79 Core Hits 57 | . 23 34 Critical Kills 1 | . 1 . Critical Parts Destroyed . | . . . Critical Strikes 1 | . 1 . Meltdown 1 | . 1 . Melee Attacks 16 | . . 16 Impact . | . . . Slashing 16 | . . 16 Piercing . | . . . Sneak Attacks 1 | . . 1 Combat Hostiles . | . . . Follow-up Attacks . | . . . Damage Inflicted 2838 | . 976 1862 Guns 449 | . . 449 Cannons 1178 | . 490 688 Explosions 682 | . 486 196 Melee 496 | . . 496 Ramming 33 | . . 33 Kinetic 449 | . . 449 Thermal 1178 | . 490 688 Explosive 682 | . 486 196 Electromagnetic . | . . . Impact . | . . . Slashing 496 | . . 496 Piercing . | . . . Highest Corruption . | . . . Average Corruption . | . . . Corruption Purged . | . . . Corruption Blocked . | . . . Overload Shots . | . . . Overflow Damage 33 | . 11 22 Projectiles . | . . . Explosions 11 | . 11 . Melee 22 | . . 22 Knockbacks . | . . . Impact . | . . . Kinetic . | . . . Secondary . | . . . Self-Inflicted Damage 95 | . 55 40 Shots 3 | . 2 1 Rammed . | . . . Targets Rammed 6 | . . 6 Kicked 6 | . . 6 Crushed . | . . . Highest Temperature 322 | . 318 322 Average Temperature 103 | . 105 101 Received Heat Transfer 546 | . 120 426 Effects 5 | . 2 3 Interference 5 | . 2 3 Siege Activations . | . . . Robots Corrupted . | . . . Combat Hostiles . | . . . Parts Fried . | . . . Impact Corruptions . | . . . Robots Melted 1 | . 1 . Combat Hostiles . | . . . Parts Melted 14 | . 8 6 Heat Transferred 2479 | . 1036 1443 Parts Sabotaged . | . . . Parts Stolen . | . . . Parts Stripped . | . . . Power Chain Reactions . | . . . Missiles Intercepted . | . . . Alert | -11 -10 -9 ------- Run | Scr Mat Mat Peak Influence 476 | . 434 476 Initial 131 | . . 131 Average 239 | . 205 270 Maximum Alert Level 2 | . 2 2 Low Security (%) 35 | 100 39 29 Level 1 47 | . 54 46 Level 2 17 | . 5 24 Level 3 . | . . . Level 4 . | . . . Level 5 . | . . . High Security . | . . . Max Security . | . . . Squads Dispatched 5 | . 3 2 Investigation 2 | . 2 . Extermination . | . . . Reinforcement 3 | . 1 2 Assault . | . . . Garrison . | . . . Intercept . | . . . Searches Triggered . | . . . Construction Impeded . | . . . Haulers Reinforced . | . . . Active Scanning Responses . | . . . Cargo Convoy Interrupts . | . . . Stealth | -11 -10 -9 --------- Run | Scr Mat Mat Distress Signals 5 | . 1 4 Communications Jammed . | . . . Distress Signals . | . . . Times Spotted 62 | . 21 41 Peak Tracking Total 6 | . 5 6 Tactical Retreats 9 | . 2 7 Traps | -11 -10 -9 ------- Run | Scr Mat Mat Traps Triggered 2 | . 2 . Indirectly . | . . . Trap Hack Attempts . | . . . Triggered . | . . . Disarmed . | . . . Reprogrammed . | . . . Reused . | . . . Traps Extracted . | . . . Installed . | . . . Triggered . | . . . Machines | -11 -10 -9 ---------- Run | Scr Mat Mat Machines Disabled 6 | . 3 3 Max in Single Turn 1 | . 1 1 Machines Sabotaged . | . . . Garrisons Compromised . | . . . Overloaded Fab Kills . | . . . Hacking | -11 -10 -9 --------- Run | Scr Mat Mat Machines Accessed 7 | . 3 4 Terminals 3 | . 1 2 Fabricators . | . . . Repair Stations 2 | . 1 1 Recycling Units 1 | . 1 . Scanalyzers 1 | . . 1 Garrison Access . | . . . Total Hacks 14 | . 6 8 Successful 9 | . 4 5 Failed 5 | . 2 3 Catastrophic . | . . . Database Lockouts . | . . . Manual . | . . . Terminals 4 | . 1 3 Fabricators . | . . . Repair Stations 5 | . 2 3 Recycling Units 3 | . 3 . Scanalyzers 2 | . . 2 Garrison Access . | . . . Terminal Hacks 3 | . 1 2 Prototype ID Bank 1 | . 1 . Unreport Threat 1 | . . 1 Zone Layout 1 | . . 1 Fabricator Hacks . | . . . Repair Station Hacks 3 | . 1 2 Scan Component 2 | . 1 1 Repair 1 | . . 1 Recycling Unit Hacks 2 | . 2 . Report Inventory 1 | . 1 . Retrieve Components 1 | . 1 . Scanalyzer 1 | . . 1 Insert Component 1 | . . 1 Garrison Access Hacks . | . . . Unauthorized Hacks . | . . . Terminals . | . . . Fabricators . | . . . Repair Stations . | . . . Recycling Units . | . . . Scanalyzers . | . . . Garrison Access . | . . . Data Cores Recovered . | . . . Used . | . . . Hacking Detections 3 | . 1 2 Full Trace Events 1 | . . 1 Feedback Events . | . . . Feedback Blocked . | . . . Robot Schematics Acquired . | . . . Robots Built . | . . . Authchips . | . . . Time . | . . . Total Robot Build Rating . | . . . Part Schematics Acquired . | . . . Parts Built . | . . . Authchips . | . . . Time . | . . . Total Part Build Rating . | . . . Parts Repaired 1 | . . 1 Time 26 | . . 26 Parts Recycled . | . . . Recycled Matter . | . . . Retrieved Matter . | . . . Retrieved Components 10 | . 10 . Parts Scanalyzed 1 | . . 1 Part Schematics Acquired . | . . . Parts Damaged . | . . . Bothacking | -11 -10 -9 ------------ Run | Scr Mat Mat Used RIF Installer . | . . . Robots Hacked . | . . . Non-combat . | . . . Combat . | . . . Robot Hacks Applied . | . . . Relay Couplers Released . | . . . Fabnet Peak Effective % . | . . . Robots Rewired . | . . . Allies Hacked . | . . . Hacks Repelled . | . . . Allies | -11 -10 -9 -------- Run | Scr Mat Mat Total Allies . | . . . Largest Group . | . . . Highest-Rated Group . | . . . Highest-Rated Ally . | . . . Total Orders . | . . . Ally Attacks . | . . . Total Damage . | . . . Kills . | . . . Allies Corrupted . | . . . Allies Melted . | . . . Intel | -11 -10 -9 ------- Run | Scr Mat Mat Robot Analysis Total . | . . . Derelict Logs Recovered . | . . . Drone Launches . | . . . Drone Recoveries . | . . . Exploration | -11 -10 -9 ------------- Run | Scr Mat Mat Turns Passed 1841 | 67 599 1175 Spaces Moved 1015 | 46 346 623 Core 11 | 11 . . Treads . | . . . Legs 1004 | 35 346 623 Wheels . | . . . Hover . | . . . Flight . | . . . Fastest Speed 50 | 50 120 120 Average Speed 122 | 127 126 120 Slowest Speed 200 | 200 190 190 Overloaded Moves . | . . . Propulsion Burnouts . | . . . Robots Hopped . | . . . Cave-ins Triggered . | . . . Exploration Rate (%) 27 | 4 45 32 Regions Visited 2 Branch Regions . Pre-discovered Areas . | . . . Known Exits Taken . | . . . Unknown Exits Taken 2 | 1 1 . Scrap Searched . | . . . Spaces Dug . | . . . Terrain Destroyed 62 | . 27 35 Melee . | . . . Projectile . | . . . AOE 62 | . 27 35 Terrain Rammed . | . . . Walls Destroyed . | . . . Machines Disabled . | . . . Actions | -11 -10 -9 --------- Run | Scr Mat Mat Total 1436 | 51 460 925 Wait 202 | . 29 173 Move 1013 | 45 345 623 Hop . | . . . Pick Up 34 | . 18 16 Fast Attach 13 | 6 5 2 Attach 20 | . 8 12 Detach 12 | . 9 3 Swap . | . . . Drop 23 | . 9 14 Fire 97 | . 37 60 Melee 16 | . . 16 Ram . | . . . Kick 6 | . . 6 Crush . | . . . Escape Stasis . | . . . Rewire . | . . . Trap . | . . . Miscellaneous . | . . . Route ------- -11/Scrapyard -10/Materials -9/Materials (discovered 1 exit: [*Sto]) History --------- Turn | Location | Event 16 | -11/Scrapyard | Discovered new exit (range 16) 68 | -11/Scrapyard | Entered Materials 310 | -10/Materials | Build established: Mutant 575 | -10/Materials | Discovered new exit (range 8) 667 | -10/Materials | Entered another Materials area 667 | -9/Materials | Evolved 2 slots: Propulsion x2 1475 | -9/Materials | Repaired Grenade Launcher 1686 | -9/Materials | Discovered new exit (range 13) 1842 | -9/Materials | Self-destructed Last Messages --------------- 01808_ K-01 Serf collects debris. 01809_ R-06 Scavenger collects Imp. Ion Engine. 01811_ K-01 Serf collects debris. 01812_ The unstable cave ceiling collapses. 01812_ K-01 Serf collects debris. 01812_ R-06 Scavenger collects Sml. Laser. 01813_ The unstable cave ceiling collapses. 01815_ K-01 Serf collects debris. 01816_ Electrolysis Chamber disabled. 01819_ K-01 Serf collects debris. 01822_ Aluminum Leg destroyed. 01823_ K-01 Serf collects debris. 01830_ The unstable cave ceiling collapses. 01830_ Aluminum Leg destroyed. 01831_ K-01 Serf collects debris. 01834_ Acquired 11 matter. 01835_ Deuterium Engine destroyed. 01835_ Critical hit (Burn: +37). 01837_ K-01 Serf collects debris. 01840_ Aluminum Leg destroyed. Map ----- +----------------------------------------------------+ | | | | | | | | | | | | | | | | | | | | | | | ??????????????????????????????###########????????? | | ??????????????????????????????# % #????????? | | ??????????????????????????????# #????????? | | ??????????????????????????????# [= ########## | | ??????????????????????????????# *= =!!" | | ???????????????????#################"#### | | ???????????????????# ######= *### | | ???????????????????# + T | | ???????????????????# ###### ######+##### | | ???????????????????# """ """ #????## ##??# # | | ???????????????????# """ """ ####### #???# ""["" # | | ???????????????????# "" " + #???# ""S"" # | | ???????????????????# [[ ####### #???# """" # | | ???????????????????# %g% #?????# #???# # | | ???????????????????####*%@####?????# #??###+###### | | ????????????????????##== = ##????### #### #?## | | ????????????????????# *= #????# # ### | | ????????????????????# ##????# # | | ????????????????????## #?????## ! ## ### | | ????????????????????## ##????######## #?## | | ????????????????????# #??################??? | | ????????????????????# # ##?# #????????# | | ????????????????????#k #?# """"" #????????# | | ????????????????????## ##???????????????????# | | ????????????????????## k #????????????????????# | | ????????????????????# % #????????????????????# | | ????????????????????# #Y #????????????????????# | | ?????????# ### ### k ##????????????????????# | | ?????????# #?????????????????????# | | ?????????# < Y #?????????????????????? | | ?????????# #?????????????????????? | | ?????????# ####### ????????????????????? | | ?????????####????????## ####???????????????????? | | ??????????????????????# #??????????????????????? | | ??????????????????????# #??????????????????????? | | ??????????????????????/ #??????????????????????? | | ??????????????????????# #??????????????????????? | | ??????????????????????# #??????????????????????? | | ??????????????????????# #??????????????????????? | +----------------------------------------------------+ Best States ------------- Heat Dissipation 28 Energy Generation 14 Energy Capacity 275 Matter Stores 300 Matter Capacity 300 Sight Range 16 Terrain Scan Range 14 Terrain Scan Density 10 Armor Coverage 150 Evasion (%) 55 Item Schematics ----------------- None Robot Schematics ------------------ None Fabricated ------------ Nothing Alien Tech Used ----------------- None Achievements -------------- None Challenges ------------ None Game ------ Seed StorageCooledShotgun Manual? 0 Play Time 00:19:58 Cumulative 14.9 hours Start 2022.03.23 @ 20:37:53 End 2022.03.23 @ 20:55:19 Sessions 1 Manual Loads 0 Difficulty Rogue Special Mode None Game No. 29 Rogue 28 Adventurer 1 Explorer 0 Win Type - Total 0 Types 0/0/0/0/0/0/0/0/0 Lore% 13 Gallery% 21 Achievement% 16 Wizard Run 0 Options --------- ASCII 0 Keyboard 1 Movement Numpad Keybinds 0 Fullscreen 1 Font 24/Smallcaps Map View 76x50 Tactical HUD 1 Map Filters NONE Filters NONE Steam 1 RUN: f914692a-6efa-4f28-95fe-513869f54374